[Event "13th KIIT Festival-A 2022"]
[Site "Bhubaneswar"]
[Date "2022.05.26"]
[Round "6.12"]
[White "Aaryan Varshney"]
[Black "Chidvilash Sai Surapaneni"]
[Result "1-0"]
[ECO "D41"]
[WhiteElo "2308"]
[BlackElo "1912"]
[Annotator "TA"]
[PlyCount "109"]
[EventDate "2022.05.15"]
[EventType "swiss"]
[EventCountry "IND"]
[SourceTitle "playchess.com"]
[Source "ChessBase"]
[SourceQuality "1"]
[TimeControl "5400+30"]

{[%evp 26,109,38,0,39,35,27,20,35,22,76,77,118,121,116,116,198,198,464,458,455,453,415,408,658,656,656,643,614,412,409,400,372,294,385,375,435,406,397,340,401,446,394,385,374,353,511,561,541,533,536,537,464,244,255,66,226,251,243,115,125,153,634,587,514,510,397,395,725,671,12794,2789,29950,12575,29985,29985,29989,29990,29990,29991,29996,29993,29997,29998,29998,29999]} 1. d4 {[%emt 0:05:10]} Nf6 {[%emt 0:00:13]} 2. c4 {[%emt 0:00:12]} e6 {[%emt 0:00:08]} 3. Nf3 {[%emt 0:00:46]} d5 {[%emt 0:00:07]} 4. Nc3 {[%emt 0:00:08]} c5 {[%emt 0:00:09]} 5. cxd5 {[%emt 0:00:35]} Nxd5 {[%emt 0:00:10]} 6. e4 {[%emt 0:00:28]} Nxc3 {[%emt 0:00:05]} 7. bxc3 {[%emt 0:00:02]} cxd4 {[%emt 0:00:07]} 8. cxd4 {[%emt 0:00:14]} Bb4+ {[%emt 0:00:01]} 9. Bd2 {[%emt 0:00:01]} Bxd2+ {[%emt 0:00:10]} 10. Qxd2 {[%emt 0:00:06]} O-O {[%emt 0:00:04]} 11. Bc4 {[%emt 0:00:22]} Nc6 {[%emt 0:02:51]} 12. O-O {[%emt 0:01:09]} b6 {[%emt 0:05:49]} 13. Rac1 {[%emt 0:11:32]} Bb7 {[%emt 0:11:21]} 14. Rfd1 {[%emt 0:03:05]} (14. d5 $5 {[%cal Rd5c6]} Na5 15. dxe6 Nxc4 16. Qxd8 (16. Rxc4 Qxd2 17. exf7+ Rxf7 $17) 16... Rfxd8 17. exf7+ (17. Rxc4 fxe6 18. Rfc1 b5 $11) 17... Kxf7 18. Rxc4 $14) 14... Rc8 {[%emt 0:07:57] D41: Queen's Gambit Declined: Semi-Tarrasch with 5 cxd5.} 15. d5 {[%emt 0:02:53]} exd5 {[%emt 0:06:21]} 16. Bxd5 {[%emt 0:02:44]} Qe7 {[%emt 0:04:05] The position is equal.} 17. Qg5 {[%emt 0:04:45] [#]} Qa3 $146 {[%emt 0:05:36]} (17... Qxg5 $11 {remains equal.} 18. Nxg5 Na5) ({Predecessor:} 17... Qxg5 18. Nxg5 Nd8 19. Rxc8 Bxc8 20. Rc1 Ne6 21. Nxe6 Bxe6 22. Bxe6 fxe6 23. g3 e5 {1-0 (55) Albornoz Cabrera,C (2527)-Hernandez Gonzalez,W (2420) Camaguey 2018}) 18. Nh4 {[%emt 0:10:33][%cal Bf3h4,Bh4f5,Bf5d6][%mdl 32] Threatens to win with Nf5. White is more active.} h6 {[%emt 0:04:44] [#]} 19. Qd2 {[%emt 0:04:19]} Na5 {[%emt 0:07:09]} 20. Nf5 {[%emt 0:02:41][%cal Od2d4]} Rxc1 {[%emt 0:06:36]} (20... Kh7 $16 21. Rxc8 (21. Qd4 f6 $16) 21... Bxc8) 21. Rxc1 $40 {[%emt 0:07:27][%mdl 128] aiming for Rc3. Black is in trouble.} ({Resist} 21. Qxc1 $6 Qxc1 22. Rxc1 Bxd5 23. exd5 Rd8 $16) 21... Rc8 {[%emt 0:01:27] [#] Against Rc3} (21... Kh7 {might work better.} 22. h3 Rc8 23. Rxc8 Bxc8 24. Bxf7 Nc6) 22. Bxf7+ $1 {[%emt 0:01:28][%mdl 512]} Kh7 {[%emt 0:09:35]} 23. Rxc8 {[%emt 0:04:09]} Bxc8 {[%emt 0:00:02]} 24. Nd6 {[%emt 0:01:08]} Ba6 {[%emt 0:01:01]} (24... Qc5 $142 25. e5 Qc7) 25. Qf4 {[%emt 0:02:52][%cal Of7g6]} Qc5 {[%emt 0:01:49]} 26. Bd5 {[%emt 0:07:56] Intending Qf5+ and mate.} ({Not} 26. e5 Bd3 $16) 26... Qd4 {[%emt 0:04:07][%cal Rd4d1]} 27. Qf5+ {[%emt 0:06:02]} g6 {[%emt 0:00:44][%cal Rd4a1]} 28. Qf7+ {[%emt 0:00:10]} Qg7 {[%emt 0:00:02]} 29. Qxg7+ {[%emt 0:00:07]} Kxg7 {[%emt 0:00:06][%mdl 4096] Endgame KBN-KBN} 30. f4 {[%emt 0:00:07]} Kf6 {[%emt 0:06:09]} 31. e5+ {[%emt 0:03:41]} Ke7 {[%emt 0:00:26]} 32. f5 {[%emt 0:02:05]} gxf5 {[%emt 0:00:14]} 33. Nxf5+ {[%emt 0:00:04]} Kf8 {[%emt 0:02:21]} 34. e6 {[%emt 0:01:12]} Bd3 {[%emt 0:00:14]} 35. Nxh6 {[%emt 0:00:14]} b5 {[%emt 0:00:50]} (35... Ke7 $142 36. Ng8+ Kd6) 36. Kf2 {[%emt 0:00:24]} Nc4 {[%emt 0:00:51]} 37. g4 {[%emt 0:01:25]} Nb6 {[%emt 0:01:40]} 38. Bb3 {[%emt 0:01:38]} a5 {[%emt 0:00:37]} 39. Nf5 {[%emt 0:03:16]} (39. Ke3 $142 Bb1 40. Nf5) 39... a4 {[%emt 0:00:04]} 40. e7+ {[%emt 0:00:57]} Ke8 {[%emt 0:00:02]} 41. Be6 {[%emt 0:00:23] Strongly threatening Ke3.} b4 {[%emt 0:01:36] [#]} 42. Ke3 $1 {[%emt 0:00:25]} Bxf5 {[%emt 0:05:44]} 43. Bxf5 $16 {[%emt 0:01:19] KB-KN} Nd5+ $2 {[%emt 0:05:48]} (43... b3 $16 44. axb3 axb3) 44. Kd3 {[%emt 0:02:07] Kc4 is the strong threat.} Kxe7 {[%emt 0:01:53]} 45. h4 {[%emt 0:03:22][%cal Bh2h4,Bh4h5,Bh5h6][%mdl 32]} Kf6 {[%emt 0:00:51]} 46. Kd4 {[%emt 0:02:28]} Nc3 {[%emt 0:00:42]} (46... Nf4 47. Bc2 Ne6+ 48. Ke3 Nc5 49. g5+ Kf7) 47. Bc2 $18 {[%emt 0:00:13]} Nxa2 {[%emt 0:00:40]} 48. g5+ {[%emt 0:00:01][%cal Bg4g5,Bg5g6,Bg6g7][%mdl 32]} Kg7 {[%emt 0:00:02]} 49. h5 {[%emt 0:04:39] White threatens h6+ and mate.} Nc3 {[%emt 0:00:38]} 50. h6+ {[%emt 0:00:07] White mates.} Kh8 {[%emt 0:00:34]} 51. g6 {[%emt 0:00:06]} Nb5+ {[%emt 0:00:53]} 52. Ke5 {[%emt 0:00:54]} b3 {[%emt 0:00:24]} 53. g7+ {[%emt 0:00:57]} Kg8 {[%emt 0:00:00] [#]} 54. Kf6 $1 {[%emt 0:01:01][%csl Gc2][%cal Rh6h7]} bxc2 {[%emt 0:00:16]} 55. Kg6 {[%emt 0:00:01] Weighted Error Value: White=0.13 (very precise) /Black=0.70} 1-0

[Event "13th KIIT Festival-A 2022"]
[Site "Bhubaneswar"]
[Date "2022.05.26"]
[Round "6.13"]
[White "Kavinda, Akila"]
[Black "Arpita, Mukherjee"]
[Result "0-1"]
[ECO "B92"]
[WhiteElo "1996"]
[BlackElo "2275"]
[Annotator "TA"]
[PlyCount "70"]
[EventDate "2022.05.15"]
[EventType "swiss"]
[EventCountry "IND"]
[SourceTitle "playchess.com"]
[Source "ChessBase"]
[SourceQuality "1"]
[TimeControl "5400+30"]

{[%evp 18,70,35,32,31,37,32,26,68,47,54,15,33,8,19,6,80,0,0,0,0,0,0,0,0,0,25,18,25,17,22,0,0,0,22,0,2,4,43,8,31,0,0,-29,-31,-25,0,0,0,-72,-41,-29996,-29994,-29995,-29996]} 1. e4 {[%emt 0:00:11]} c5 {[%emt 0:05:52]} 2. Nf3 {[%emt 0:00:06]} d6 {[%emt 0:00:08]} 3. d4 {[%emt 0:00:06]} cxd4 {[%emt 0:00:09]} 4. Nxd4 {[%emt 0:00:04]} Nf6 {[%emt 0:00:13]} 5. Nc3 {[%emt 0:00:07]} a6 {[%emt 0:00:05]} 6. Be2 {[%emt 0:00:06]} e5 {[%emt 0:00:22]} 7. Nb3 {[%emt 0:00:14]} Be7 {[%emt 0:00:23]} 8. Bg5 {[%emt 0:00:12]} Nbd7 {[%emt 0:02:11]} 9. a4 {[%emt 0:00:19]} O-O {[%emt 0:01:03] has lost popularity (9...b6).} 10. O-O {[%emt 0:03:14]} h6 {[%emt 0:00:46] B92: Sicilian Najdorf: 6 Be2.} 11. Bh4 {[%emt 0:05:05]} Qc7 {[%emt 0:06:52]} 12. Nd2 {[%emt 0:03:12]} b6 {[%emt 0:03:24] White has an edge.} 13. Bc4 {[%emt 0:15:57]} Bb7 {[%emt 0:05:15]} 14. Bxf6 {[%emt 0:12:11]} Nxf6 {[%emt 0:00:19]} 15. Qe2 {[%emt 0:03:00]} Rfd8 {[%emt 0:03:55]} 16. Rfd1 {[%emt 0:05:48] [#]} Bf8 $146 {[%emt 0:01:26]} (16... Rac8 $11 {remains equal.}) ({Predecessor:} 16... d5 17. exd5 Nxd5 18. Nxd5 Bxd5 19. Bxd5 Rxd5 20. Nc4 Rc5 21. Ne3 Bg5 22. b4 Rc6 {0-1 (64) Posada Zuluaga,J (2101)-Ruiz Castillo,J (2409) Ibague 2013}) 17. Bb3 {[%emt 0:20:12]} (17. Nf1 $16) 17... d5 $1 $11 {[%emt 0:05:59]} 18. Nxd5 {[%emt 0:01:16]} Nxd5 {[%emt 0:00:18]} 19. exd5 {[%emt 0:00:04]} Bxd5 {[%emt 0:00:21]} 20. Bxd5 {[%emt 0:00:55]} Rxd5 {[%emt 0:00:09]} 21. Nc4 {[%emt 0:17:04]} Rad8 {[%emt 0:08:11]} 22. Rxd5 {[%emt 0:06:22]} Rxd5 {[%emt 0:00:03]} 23. Ne3 {[%emt 0:00:05][%csl LRa6,LRd5]} Ra5 {[%emt 0:00:37]} 24. Nc4 {[%emt 0:02:56]} Rc5 {[%emt 0:00:19]} 25. Ne3 {[%emt 0:00:10]} a5 {[%emt 0:05:20]} 26. b3 {[%emt 0:03:15]} e4 {[%emt 0:05:11][%cal Be5e4,Be4e3,Be3e2][%mdl 32]} 27. Rd1 {[%emt 0:01:06]} f5 {[%emt 0:02:23]} 28. c4 {[%emt 0:00:29]} Qe5 {[%emt 0:01:59]} ({Resist} 28... Bd6 29. Qh5 $16) 29. Nd5 {[%emt 0:00:32]} Rc6 {[%emt 0:00:13]} 30. f3 {[%emt 0:00:34]} Bc5+ {[%emt 0:01:14]} 31. Kh1 {[%emt 0:00:20]} e3 {[%emt 0:00:37]} 32. f4 {[%emt 0:00:34]} Qe4 {[%emt 0:00:10]} 33. Kg1 {[%emt 0:00:24]} (33. h3 $1 $11) 33... Rg6 {[%emt 0:00:49][%cal Oe4g2] ( -> ...Qxg2+!)} 34. Rd3 $2 {[%emt 0:00:41][%mdl 8192] [#]} (34. Re1 $15) 34... Rxg2+ $3 {[%emt 0:00:36][%mdl 512]} 35. Qxg2 {[%emt 0:00:04]} (35. Kf1 Rf2+) 35... e2+ {[%emt 0:00:12] Weighted Error Value: White=0.49/Black=0.16 (very precise)} 0-1

[Event "13th KIIT Festival-A 2022"]
[Site "Bhubaneswar"]
[Date "2022.05.26"]
[Round "6.14"]
[White "Dhananjay S"]
[Black "Koustav Chakraborty"]
[Result "0-1"]
[ECO "A84"]
[WhiteElo "2218"]
[BlackElo "1945"]
[Annotator "TA"]
[PlyCount "120"]
[EventDate "2022.05.15"]
[EventType "swiss"]
[EventCountry "IND"]
[SourceTitle "playchess.com"]
[Source "ChessBase"]
[SourceQuality "1"]
[TimeControl "5400+30"]

{[%evp 9,120,25,25,25,30,8,34,18,18,16,19,0,27,21,26,9,43,35,50,47,64,69,63,45,38,43,42,0,62,83,72,74,58,78,67,39,52,60,239,96,338,325,312,9,24,20,20,0,0,7,0,0,10,-253,-102,-123,-113,-103,-106,-258,-259,-242,-245,-241,-244,-236,-227,-249,-257,-416,-426,-392,-372,-761,-582,-541,-326,-330,-337,-329,-333,-309,-303,-326,-316,-309,-293,-366,-336,-426,-404,-551,-591,-689,-678,-703,-681,-622,-665,-1093,-1084,-1048,-586,-1008,-1033,-954,-968,-1410,-1399,-958,-1028,-671,-665]} 1. d4 {[%emt 0:00:24]} d5 {[%emt 0:01:10]} 2. c4 {[%emt 0:00:06]} e6 {[%emt 0:00:17]} 3. Nf3 {[%emt 0:00:06]} c6 {[%emt 0:01:49]} 4. e3 {[%emt 0:00:56]} f5 {[%emt 0:00:32]} 5. b3 {[%emt 0:00:35]} Bd6 {[%emt 0:00:16]} 6. Bb2 {[%emt 0:00:28] A84: Dutch Defence: 2 c4 Miscellaneous.} Qe7 {[%emt 0:00:05] [#]} 7. a3 $146 {[%emt 0:02:15]} ({Predecessor:} 7. Bd3 Nf6 8. a4 b6 9. O-O O-O 10. Ba3 c5 11. Nc3 Nc6 12. Nb5 Bb8 13. dxc5 bxc5 {½-½ (45) Mieszke,M (2325)-Grieve,H (2292) Chess.com INT 2018}) 7... a5 {[%emt 0:02:20]} 8. Be2 {[%emt 0:01:23] White is slightly better.} Nf6 {[%emt 0:00:16]} 9. Nbd2 {[%emt 0:00:45]} O-O {[%emt 0:00:33]} 10. O-O {[%emt 0:00:07]} Ne4 {[%emt 0:03:01]} 11. Ne5 {[%emt 0:02:37]} Nd7 {[%emt 0:03:57]} 12. Ndf3 {[%emt 0:00:48]} g5 {[%emt 0:07:58]} 13. Nd3 {[%emt 0:09:49]} g4 {[%emt 0:21:24]} 14. Nfe5 {[%emt 0:00:07]} Nxe5 {[%emt 0:02:26]} 15. dxe5 {[%emt 0:01:26]} Bc7 {[%emt 0:00:29]} 16. f3 {[%emt 0:02:43]} gxf3 {[%emt 0:00:10]} 17. gxf3 {[%emt 0:00:22]} Nc5 {[%emt 0:02:58]} 18. Nf4 {[%emt 0:01:20]} Nd7 {[%emt 0:04:38]} (18... dxc4 $1 $11 19. bxc4 b6) 19. Kh1 $14 {[%emt 0:00:04]} Bxe5 {[%emt 0:04:20]} 20. Bxe5 {[%emt 0:14:09]} Nxe5 {[%emt 0:00:27]} 21. Rg1+ {[%emt 0:00:12]} Kf7 {[%emt 0:00:25]} 22. e4 {[%emt 0:00:22]} (22. cxd5 exd5 23. e4 fxe4 24. fxe4 Ke8 25. Bh5+ Kd8 $11) 22... Ng6 {[%emt 0:12:03]} (22... dxe4 $2 23. fxe4 Ng4 24. Bxg4 fxg4 25. Qxg4 $18) 23. Qd2 {[%emt 0:00:56][%cal Rc4d5]} dxe4 {[%emt 0:04:17]} (23... e5 $14 24. Nxg6 hxg6) 24. fxe4 $18 {[%emt 0:02:43]} Rg8 $2 {[%emt 0:14:52]} (24... fxe4 $2 25. Bh5 Rd8 26. Qe2 $18) (24... Qh4 $16 25. Bh5 e5 26. Nxg6 hxg6 27. Bxg6+ Ke7) 25. exf5 {[%emt 0:02:28]} exf5 {[%emt 0:00:06]} 26. Bf3 $2 {[%emt 0:02:40]} (26. Bh5 $1 $18) 26... Rd8 $1 $11 {[%emt 0:03:40]} 27. Qc1 {[%emt 0:05:15]} Qh4 $1 {[%emt 0:02:26]} 28. Bh5 {[%emt 0:02:13] Threatens to win with Qe3.} Rd4 {[%emt 0:00:19]} 29. Ne2 {[%emt 0:05:33]} (29. Bxg6+ hxg6 30. Nxg6 Qe4+ 31. Rg2 f4 $17) 29... Qxh5 {[%emt 0:01:23]} 30. Nxd4 {[%emt 0:03:50]} c5 {[%emt 0:00:04]} 31. Nc2 {[%emt 0:00:42][%mdl 8192]} (31. Rg5 $11 {and White is okay.} Qh3 32. Rg3) 31... Qf3+ {[%emt 0:01:53]} (31... Bd7 $19 {is more deadly. aiming for ...Bc6+.} 32. Rg3 f4) 32. Rg2 $17 {[%emt 0:00:01] Strongly threatening Qh6.} Nf4 {[%emt 0:00:02][%csl Gf4][%cal Rf3g2][%mdl 64] Pin} 33. Ne1 {[%emt 0:04:20]} Qe4 {[%emt 0:00:06][%mdl 64] Hoping for ...Bd7. Pin. Dancing on a razor blade.} 34. Qc3 $2 {[%emt 0:01:02]} Nxg2 $19 {[%emt 0:00:54]} 35. Nxg2 {[%emt 0:00:22]} Bd7 {[%emt 0:00:26]} 36. Re1 {[%emt 0:01:14]} Qg4 {[%emt 0:01:10] White must now prevent ...Rg8. Active counter play!} (36... Qd4 37. Qh3 $15) 37. h3 {[%emt 0:02:48] [#]} Qg5 {[%emt 0:01:25]} ({Stronger than} 37... Qd4 38. Qf3 Bc6 39. Qxf5+ Kg8 40. Re7 (40. Rf1 Qg7 $17) 40... Qd1+ 41. Kh2 Qd6+ 42. Qe5 Qxe5+ 43. Rxe5 $15) 38. Qe5 {[%emt 0:03:19] Qd5+ is the strong threat.} Bc6 $40 {[%emt 0:00:15][%csl Gc6][%cal Rg5g2][%mdl 128] Prevents Qd5+. Black goes for the king.} 39. Qc7+ $2 {[%emt 0:09:27]} (39. Qe6+ {was the only chance.} Kg7 40. Qe5+ Kg8 41. Qe6+ Kh8 42. Qe5+ Qg7 43. Kh2) 39... Kg8 {[%emt 0:00:49][%csl Gc6][%cal Rg5g2]} 40. Re2 {[%emt 0:00:51]} f4 {[%emt 0:00:24] ( -> ...Rd8)} 41. Rf2 $2 {[%emt 0:01:18]} (41. Qe5 Qxe5 42. Rxe5) 41... Rf8 {[%emt 0:00:06] And now ...Qg3 would win.} 42. Qd6 {[%emt 0:01:12]} Qg3 {[%emt 0:00:40]} 43. Qe6+ {[%emt 0:01:37]} Rf7 {[%emt 0:00:10]} ({Don't go for} 43... Kh8 $2 44. Qe5+ Kg8 45. Qe6+ Rf7 46. Qg4+ Qxg4 47. hxg4 $19) 44. Qg4+ {[%emt 0:00:09]} Qxg4 {[%emt 0:00:06]} 45. hxg4 {[%emt 0:00:04][%mdl 4096] Endgame KRB-KRN} Re7 {[%emt 0:00:38]} 46. Kh2 {[%emt 0:01:57] [#]} f3 {[%emt 0:00:03]} 47. Nf4 {[%emt 0:01:46]} Re3 {[%emt 0:00:11]} 48. Rb2 {[%emt 0:00:33]} Kf7 {[%emt 0:00:48]} 49. g5 {[%emt 0:04:12]} Re5 {[%emt 0:00:15]} 50. Rf2 {[%emt 0:03:33]} Rxg5 {[%emt 0:00:24] Black is clearly winning.} 51. Nd3 {[%emt 0:00:03]} Kf6 {[%emt 0:01:12]} 52. Ne1 {[%emt 0:00:04]} Rf5 {[%emt 0:00:28]} 53. Kg3 {[%emt 0:00:15]} Ke5 {[%emt 0:00:12]} 54. Rd2 {[%emt 0:01:15]} f2 {[%emt 0:00:42]} 55. Nd3+ {[%emt 0:00:06]} Kd4 {[%emt 0:00:06]} 56. Nxf2+ {[%emt 0:00:21]} Ke3 {[%emt 0:00:09]} 57. Rd3+ {[%emt 0:00:17]} Ke2 {[%emt 0:00:07]} 58. Rc3 {[%emt 0:00:05]} Rf3+ {[%emt 0:01:11]} ({Not} 58... Rxf2 $2 59. Rc2+ Kd3 60. Rxf2 $19) 59. Rxf3 {[%emt 0:00:08]} Bxf3 {[%emt 0:00:02]} 60. Nh3 {[%emt 0:00:06]} Ke3 {[%emt 0:00:31] Never resign too early!  Weighted Error Value: White=0.68/Black=0.28 (precise)} 0-1

[Event "13th KIIT Festival-A 2022"]
[Site "Bhubaneswar"]
[Date "2022.05.26"]
[Round "6.15"]
[White "Ram Aravind L N"]
[Black "Hriday Panchal"]
[Result "1-0"]
[ECO "A22"]
[WhiteElo "2116"]
[BlackElo "1766"]
[Annotator "TA"]
[PlyCount "93"]
[EventDate "2022.05.15"]
[EventType "swiss"]
[EventCountry "IND"]
[SourceTitle "playchess.com"]
[Source "ChessBase"]
[SourceQuality "1"]
[TimeControl "5400+30"]

{[%evp 9,93,-25,-22,-23,-20,-27,-11,-14,-8,-11,-5,-15,-4,-3,-3,-22,17,-21,-7,-93,-48,-135,-129,-147,-137,-160,-178,-226,-79,-89,-41,-31,-44,-42,-32,-58,-54,-65,-28,-26,-25,-22,-21,-42,-27,-58,-18,-26,0,0,0,-31,20,0,7,-27,-8,-107,-27,-30,-16,-10,486,481,475,474,474,474,425,301,275,268,943,303,303,303,318,318,29959,29960,29961,5746,4849,4833,29989,885]} 1. c4 {[%emt 1:31:00]} Nf6 {[%emt 1:31:00]} 2. Nc3 {[%emt 0:00:30]} e5 {[%emt 0:00:30]} 3. e4 {[%emt 0:00:30]} Nc6 {[%emt 0:00:30]} 4. d3 {[%emt 0:00:30]} Bc5 {[%emt 0:00:30]} 5. g3 {[%emt 0:00:30]} d6 {[%emt 0:00:30]} 6. h3 {[%emt 0:00:30] Prevents Ng4. A22: English Opening: 1...e5 2 Nc3 Nf6.} O-O {[%emt 0:00:30]} 7. Bg2 {[%emt 0:00:30]} a5 {[%emt 0:00:30]} 8. Nge2 {[%emt 0:00:30] The position is equal.} Nd4 {[%emt 0:00:30]} 9. O-O {[%emt 0:00:30]} c6 {[%emt 0:00:30]} 10. Kh2 {[%emt 0:00:30] [#]} Rb8 $146 {[%emt 0:00:30]} ({Predecessor:} 10... Ne6 11. f4 h6 12. f5 Nd4 13. g4 Nh7 14. Nxd4 Bxd4 15. Ne2 Bc5 16. Qe1 b5 {0-1 (64) Rutter,B (1940)-Bince,R (2024) Winnipeg 2016}) 11. Nxd4 {[%emt 0:00:30]} Bxd4 {[%emt 0:00:30]} 12. Ne2 {[%emt 0:00:30]} Bc5 {[%emt 0:00:30]} 13. f4 {[%emt 0:00:30]} b5 {[%emt 0:00:30]} 14. f5 {[%emt 0:00:30]} (14. cxb5 $11 cxb5 15. a3) 14... h6 {[%emt 0:00:30]} 15. g4 {[%emt 0:00:30]} (15. cxb5 $15 cxb5 16. a3) 15... bxc4 $17 {[%emt 0:00:30]} 16. dxc4 {[%emt 0:00:30]} d5 {[%emt 0:00:30]} 17. cxd5 {[%emt 0:00:30]} cxd5 {[%emt 0:00:30]} 18. exd5 {[%emt 0:00:30]} (18. Nc3 $142) 18... Bb7 {[%emt 0:00:30]} (18... Ba6 $19 {[%cal Of6g4] Threatens to win with ...Nxg4+!} 19. Rf3 e4) 19. Nc3 {[%emt 0:00:30]} Bd4 {[%emt 0:00:30]} (19... Ba6 $17 20. Re1 Re8) 20. g5 $1 $15 hxg5 {[%emt 0:00:30]} ({But not} 20... Nxd5 21. gxh6 Ne3 22. Bxe3 Bxg2 23. Qg4 $11) 21. Bxg5 {[%emt 0:01:00] [#] Strongly threatening Ne4.} Qb6 {[%emt 0:00:30]} 22. Bxf6 {[%emt 0:00:30]} Qxf6 {[%emt 0:00:30]} 23. Qh5 $1 {[%emt 0:00:30]} Rfd8 {[%emt 0:00:30] White must now prevent ...Bxc3.} (23... e4 $5 24. Kh1 Bxc3 25. bxc3 Bxd5 $17) 24. Ne4 {[%emt 0:00:30]} Qh6 {[%emt 0:00:30]} 25. Qxh6 {[%emt 0:00:30]} gxh6 {[%emt 0:00:30]} 26. Rab1 {[%emt 0:00:30]} Kf8 {[%emt 0:00:30][%mdl 1024] Black has compensation.} (26... Bxd5 $2 27. Nf6+ Kf8 28. Nxd5 $18 (28. Bxd5 Ke7 $11)) 27. Nc3 {[%emt 0:00:30]} Rbc8 {[%emt 0:00:30]} 28. Rbc1 {[%emt 0:00:30]} Ke8 {[%emt 0:00:30]} 29. Rfd1 {[%emt 0:00:30]} Kf8 {[%emt 0:00:30]} 30. f6 {[%emt 0:00:30]} Ke8 {[%emt 0:00:30]} (30... Be3 $15 31. Rc2 Rd6) 31. Be4 {[%emt 0:00:30]} Rc5 {[%emt 0:00:30]} 32. Rd3 {[%emt 0:00:30]} Bxd5 {[%emt 0:00:30] A strong pair of Bishops.} 33. Bf5 {[%emt 0:00:30] [#]} (33. Bxd5 $11 Rdxd5 34. Rcd1) 33... Rb8 {[%emt 0:00:30]} (33... Rd6 $1 $17 34. Re1 Kd8) 34. Rc2 $11 {[%emt 0:00:30] Hoping for Rg3.} Rb6 35. Rg3 {[%emt 0:00:30][%cal Rg3g8]} Kf8 {[%emt 0:01:00][%mdl 8192] Inhibits Rg8+.} (35... Be6 $11 {and Black has nothing to worry.} 36. Bxe6 Rxe6) 36. Nxd5 $18 {[%emt 0:00:30][%cal Oc2g2] White threatens Rcg2! and mate.} Rxc2+ {[%emt 0:00:30]} 37. Bxc2 {[%emt 0:00:30]} Rxb2 {[%emt 0:00:30]} 38. Rg2 {[%emt 0:00:30]} Rxa2 {[%emt 0:00:30]} 39. Ne7 {[%emt 0:00:30][%csl Ge7][%cal Rg2g8]} Ke8 40. Nf5 {[%emt 0:00:30]} h5 $2 {[%emt 0:01:00]} (40... Bb6 41. Bb3 Rxg2+ 42. Kxg2 Bd8 43. Nxh6 Bxf6) 41. Nd6+ $2 {[%emt 0:00:30]} (41. Nxd4 exd4 42. Bb3) 41... Kf8 {[%emt 0:00:30]} 42. Bb3 {[%emt 0:00:30][%csl LRa2,LRf7]} Rxg2+ {[%emt 0:00:30]} 43. Kxg2 {[%emt 0:00:30] aiming for Kg3.} Bc5 $2 {[%emt 0:00:30]} (43... e4 $18 44. Nxe4 Be5) 44. Nxf7 {[%emt 0:00:30]} a4 {[%emt 0:00:30]} 45. Ba2 {[%emt 0:00:30]} e4 {[%emt 0:00:30]} 46. Ng5 {[%emt 0:00:30]} Be3 {[%emt 0:00:30]} 47. Nh7+ {[%emt 0:00:30] White used his chance.  Weighted Error Value: White=0.30/Black=0.71} 1-0